Cogmind - Beta 10.2 *** ADVENTURER MODE // 2020.11.14 @ 10:51:05 // Halloween2020/ForbiddenLore Player: Lord Jim Result: Destroyed by Y-45 Defender with Heavy Assault Rifle Performance ------------- Evolutions (1) 500 Regions Visited (2) 400 Robots Destroyed (33) 165 Value Destroyed (580) 580 Prototype IDs (0) 0 Alien Tech Used (0) 0 Bonus (0) 0 TOTAL SCORE: 1645 Bonus ------- None Cogmind --------- Core Integrity 0/400 Matter 78/300 Energy 66/100 System Corruption 2% Temperature Cool (171) Movement Walking (210) Ox3 Location -9/Materials Parts ------- > --- POWER (1) -------- (None) > --- PROPULSION (2) --- Improved Aluminum Leg > --- UTILITY (4) ------ Large Storage Unit Large Storage Unit Weapon Shielding Weapon Shielding > --- WEAPON (2) ------- Beam Cannon Beam Cannon > --- INVENTORY (16) --- Heat Sink Beam Cannon Beam Cannon Light Assault Rifle Peak State ------------ > --- POWER ------------ Light Ion Engine > --- PROPULSION ------- Aluminum Leg Improved Aluminum Leg > --- UTILITY ---------- Large Storage Unit Large Storage Unit Weapon Shielding Weapon Shielding > --- WEAPON ----------- Light EM Pulse Cannon Light EM Pulse Cannon > --- INVENTORY -------- Heat Sink Weapon Shielding Beam Cannon Beam Cannon Beam Cannon Beam Cannon Light Assault Rifle [Rating: 12] Favorites ----------- Power Ion Engine Engine Ion Engine Propulsion Aluminum Leg Leg Aluminum Leg Utility Large Storage Unit Device Heat Sink Storage Large Storage Unit Protection Weapon Shielding Weapon Beam Cannon Energy Gun Small Laser Energy Cannon Beam Cannon Ballistic Gun Light Assault Rifle Launcher Grenade Launcher Build | -11 -10 -9 ------- Run | Scr Mat Mat Slots Evolved 2 | . . 2 Power . | . . . Propulsion . | . . . Utility 2 | . . 2 Weapon . | . . . Parts Attached 27 | 6 7 14 Power 4 | 1 . 3 Engine 4 | 1 . 3 Core . | . . . Reactor . | . . . Propulsion 3 | 2 . 1 Treads . | . . . Leg 3 | 2 . 1 Wheel . | . . . Hover . | . . . Flight . | . . . Utility 8 | 1 3 4 Device 2 | . 2 . Storage 3 | 1 1 1 Processor . | . . . Hackware . | . . . Protection 3 | . . 3 Artifact . | . . . Weapon 12 | 2 4 6 Energy Gun 1 | 1 . . Energy Cannon 8 | . 3 5 Ballistic Gun 1 | 1 . . Ballistic Cannon . | . . . Launcher 2 | . 1 1 Special Weapon . | . . . Impact Weapon . | . . . Slashing Weapon . | . . . Piercing Weapon . | . . . Special Melee Weapon . | . . . Unidentified Prototypes . | . . . Parts Lost 11 | . 1 10 Power 4 | . . 4 Propulsion 2 | . 1 1 Utility 1 | . . 1 Weapon 4 | . . 4 Highest Loss Streak 4 | . 1 4 Average Slot Usage (%) 88 | . 89 85 Engine 11 | . 14 7 Leg 17 | . 20 13 Device 7 | . 12 . Storage 16 | . 14 21 Protection 8 | . . 22 Energy Cannon 13 | . 17 6 Launcher 10 | . 8 13 Naked Turns . | . . . Heaviest Build 47 | 11 28 47 Greatest Support 23 | 20 20 23 Greatest Overweight (x) 4 | 1 2 4 Average Overweight (x) 1 | . . 2 Largest Inventory Capacity 16 | 6 10 16 Average Capacity 9 | 5 6 15 Most Carried 9 | 1 9 8 Average Carried 6 | . 5 7 Final Capacity 16 | 6 10 16 Final Carried 9 | 1 9 4 Class Distribution -------------------- 100% | Mutant Dominant Class ---------------- Mutant | -10/Materials Mutant | -9/Materials Resources | -11 -10 -9 ----------- Run | Scr Mat Mat Matter Collected 568 | 260 120 188 Remotely . | . . . Salvage Created 660 | . 139 521 Parts 57 | . 12 45 Haulers Intercepted 1 | . . 1 Recyclers Shooed 2 | . . 2 Parts Field Recycled . | . . . Retrieved Matter . | . . . Parts Self-Destructed . | . . . Prevented . | . . . Kills | -11 -10 -9 ------- Run | Scr Mat Mat Combat Hostiles Destroyed 20 | . 8 12 Cannons 10 | . 5 5 AOE 10 | . 3 7 Classes Destroyed 9 | . 3 6 Worker 6 | . 1 5 Builder 4 | . . 4 Hauler 1 | . . 1 Recycler 1 | . . 1 Watcher 1 | . . 1 Swarmer 9 | . 6 3 Grunt 7 | . 2 5 Duelist 1 | . . 1 Sentry 3 | . . 3 Best Kill Streak 9 | . 4 9 Combat Bots Only 4 | . 4 3 Max Kills in Single Turn 3 | . 3 2 Gunslinging . | . . . Exploded 2 | . 2 2 Melee . | . . . Uniques/NPCs Destroyed . | . . . Combat | -11 -10 -9 -------- Run | Scr Mat Mat Damage Taken 1640 | . 306 1334 Core 444 | . 37 407 Absorbed by Shields . | . . . Core Remaining (%) 92 | 100 85 . Volleys Fired 45 | . 18 27 Largest 2 | . 2 2 Hottest 120 | . 120 120 Shots Fired 79 | . 32 47 Gun . | . . . Cannon 49 | . 29 20 Launcher 30 | . 3 27 Special . | . . . Kinetic . | . . . Thermal 39 | . 29 10 Explosive 30 | . 3 27 Electromagnetic 10 | . . 10 Robot Hit Streak 15 | . 6 15 Robot Miss Streak 3 | . 3 3 Penetration Max . | . . . Secondary Targets . | . . . Shots Hit Robots 45 | . 16 29 Core Hits 53 | . 10 43 Critical Hits . | . . . Critical Kills . | . . . Critical Parts Destroyed . | . . . Melee Attacks . | . . . Impact . | . . . Slashing . | . . . Piercing . | . . . Sneak Attacks . | . . . Combat Hostiles . | . . . Follow-up Attacks . | . . . Damage Inflicted 1897 | . 444 1453 Guns . | . . . Cannons 499 | . 244 255 Explosions 1398 | . 200 1198 Melee . | . . . Ramming . | . . . Kinetic . | . . . Thermal 368 | . 244 124 Explosive 1398 | . 200 1198 Electromagnetic 131 | . . 131 Impact . | . . . Slashing . | . . . Piercing . | . . . Highest Corruption 2 | . . 2 Average Corruption 2 | . . 2 Corruption Purged . | . . . Effects 2 | . . 2 Message Errors 1 | . . 1 Heat Flow Errors 1 | . . 1 Overload Shots . | . . . Overflow Damage 6 | . 5 1 Projectiles . | . . . Explosions 6 | . 5 1 Melee . | . . . Knockbacks . | . . . Impact . | . . . Kinetic . | . . . Secondary . | . . . Self-Inflicted Damage 80 | . . 80 Shots 6 | . . 6 Rammed . | . . . Targets Rammed . | . . . Kicked . | . . . Crushed . | . . . Highest Temperature 763 | . 763 162 Average Temperature 250 | . 405 41 Received Heat Transfer 330 | . 48 282 Effects 19 | . 19 . Shutdowns 4 | . 4 . Energy Bleed 6 | . 6 . Interference 2 | . 2 . Matter Decay 2 | . 2 . Damage (minor) 4 | . 4 . Damage (core) 1 | . 1 . Siege Activations . | . . . Robots Corrupted . | . . . Combat Hostiles . | . . . Parts Fried 1 | . . 1 Impact Corruptions . | . . . Robots Melted . | . . . Combat Hostiles . | . . . Parts Melted 3 | . 3 . Heat Transferred 777 | . 518 259 Parts Sabotaged . | . . . Parts Stolen . | . . . Parts Stripped . | . . . Power Chain Reactions . | . . . Missiles Intercepted . | . . . Alert | -11 -10 -9 ------- Run | Scr Mat Mat Peak Influence 337 | . 213 337 Initial 15 | . . 15 Average 85 | . 58 141 Maximum Alert Level 1 | . 1 1 Low Security (%) 82 | 100 91 65 Level 1 17 | . 8 34 Level 2 . | . . . Level 3 . | . . . Level 4 . | . . . Level 5 . | . . . High Security . | . . . Max Security . | . . . Squads Dispatched 1 | . . 1 Investigation . | . . . Extermination . | . . . Reinforcement 1 | . . 1 Assault . | . . . Garrison . | . . . Intercept . | . . . Construction Impeded 1 | . . 1 Haulers Reinforced . | . . . Stealth | -11 -10 -9 --------- Run | Scr Mat Mat Distress Signals 2 | . . 2 Communications Jammed . | . . . Distress Signals . | . . . Times Spotted 31 | . 11 20 Peak Tracking Total 6 | . 4 6 Tactical Retreats 1 | . . 1 Traps | -11 -10 -9 ------- Run | Scr Mat Mat Traps Triggered 2 | . 2 . Indirectly . | . . . Trap Hack Attempts . | . . . Triggered . | . . . Disarmed . | . . . Reprogrammed 3 | . . 3 Reused 1 | . . 1 Traps Extracted . | . . . Installed . | . . . Triggered 1 | . . 1 Machines | -11 -10 -9 ---------- Run | Scr Mat Mat Machines Disabled 3 | . . 3 Max in Single Turn 1 | . . 1 Machines Sabotaged . | . . . Garrisons Compromised . | . . . Overloaded Fab Kills . | . . . Fab Network Shutdowns . | . . . Hacking | -11 -10 -9 --------- Run | Scr Mat Mat Machines Accessed 6 | . 4 2 Terminals 6 | . 4 2 Fabricators . | . . . Repair Stations . | . . . Recycling Units . | . . . Scanalyzers . | . . . Garrison Access . | . . . Total Hacks 8 | . 6 2 Successful 4 | . 2 2 Failed 4 | . 4 . Catastrophic 1 | . 1 . Database Lockouts . | . . . Manual 3 | . 3 . Terminals 8 | . 6 2 Fabricators . | . . . Repair Stations . | . . . Recycling Units . | . . . Scanalyzers . | . . . Garrison Access . | . . . Terminal Hacks 4 | . 2 2 Level Access Points 1 | . 1 . Branch Access Points 1 | . 1 . Locate Traps 1 | . . 1 Reprogram Traps 1 | . . 1 Fabricator Hacks . | . . . Repair Station Hacks . | . . . Recycling Unit Hacks . | . . . Scanalyzer . | . . . Garrison Access Hacks . | . . . Unauthorized Hacks . | . . . Terminals . | . . . Fabricators . | . . . Repair Stations . | . . . Recycling Units . | . . . Scanalyzers . | . . . Garrison Access . | . . . Data Cores Recovered . | . . . Used . | . . . Hacking Detections 3 | . 3 . Full Trace Events . | . . . Feedback Events . | . . . Feedback Blocked . | . . . Robot Schematics Acquired . | . . . Robots Built . | . . . Matter . | . . . Time . | . . . Total Robot Build Rating . | . . . Part Schematics Acquired . | . . . Parts Built . | . . . Matter . | . . . Time . | . . . Total Part Build Rating . | . . . Parts Repaired . | . . . Time . | . . . Parts Recycled . | . . . Recycled Matter . | . . . Retrieved Matter . | . . . Retrieved Components . | . . . Parts Scanalyzed . | . . . Part Schematics Acquired . | . . . Parts Damaged . | . . . Bothacking | -11 -10 -9 ------------ Run | Scr Mat Mat Used RIF Installer . | . . . Robots Hacked . | . . . Non-combat . | . . . Combat . | . . . Robot Hacks Applied . | . . . Relay Couplers Released . | . . . Robots Rewired . | . . . Allies Hacked . | . . . Hacks Repelled . | . . . Allies | -11 -10 -9 -------- Run | Scr Mat Mat Total Allies . | . . . Largest Group . | . . . Highest-Rated Group . | . . . Highest-Rated Ally . | . . . Total Orders . | . . . Ally Attacks . | . . . Total Damage . | . . . Kills . | . . . Allies Corrupted . | . . . Allies Melted . | . . . Intel | -11 -10 -9 ------- Run | Scr Mat Mat Robot Analysis Total . | . . . Derelict Logs Recovered . | . . . Drone Launches . | . . . Drone Recoveries . | . . . Exploration | -11 -10 -9 ------------- Run | Scr Mat Mat Turns Passed 1258 | 45 768 445 Spaces Moved 672 | 32 483 157 Core 6 | 6 . . Treads . | . . . Legs 666 | 26 483 157 Wheels . | . . . Hover . | . . . Flight . | . . . Fastest Speed 50 | 50 120 150 Average Speed 155 | 111 141 207 Slowest Speed 240 | 150 180 240 Overloaded Moves . | . . . Propulsion Burnouts . | . . . Robots Hopped . | . . . Cave-ins Triggered 1 | . . 1 Exploration Rate (%) 35 | 3 77 25 Regions Visited 2 Branch Regions . Pre-discovered Areas . | . . . Known Exits Taken 1 | . 1 . Unknown Exits Taken 1 | 1 . . Scrap Searched . | . . . Spaces Dug 5 | . 5 . Terrain Destroyed 129 | . 18 111 Melee . | . . . Projectile . | . . . AOE 129 | . 18 111 Terrain Rammed . | . . . Walls Destroyed . | . . . Machines Disabled . | . . . Actions | -11 -10 -9 --------- Run | Scr Mat Mat Total 799 | 38 534 227 Wait 38 | . 12 26 Move 670 | 31 482 157 Hop . | . . . Pick Up 14 | 1 10 3 Fast Attach 11 | 6 2 3 Attach 8 | . . 8 Detach . | . . . Swap 8 | . 5 3 Drop 5 | . 5 . Fire 45 | . 18 27 Melee . | . . . Ram . | . . . Kick . | . . . Crush . | . . . Escape Stasis . | . . . Rewire . | . . . Trap . | . . . Miscellaneous . | . . . Route ------- -11/Scrapyard -10/Materials (discovered 5 exits: *Mat x3 / *Min x2) -9/Materials (discovered 1 exit: [*Min]) History --------- Turn | Location | Event 20 | -11/Scrapyard | Discovered new exit (range 15) 46 | -11/Scrapyard | Entered Materials 153 | -10/Materials | Discovered new exit (range 14) 171 | -10/Materials | Identified exit to Materials 315 | -10/Materials | Build established: Mutant 319 | -10/Materials | Identified exit to Mines 814 | -10/Materials | Entered another Materials area 814 | -9/Materials | Evolved 2 slots: Utility x2 1040 | -9/Materials | Discovered new exit (range 16) 1103 | -9/Materials | Crushed by falling debris 1114 | -9/Materials | Core integrity fell below 50% 1153 | -9/Materials | Lost 3 parts (1p2w) 1239 | -9/Materials | Core integrity fell below 20% 1259 | -9/Materials | Destroyed by Y-45 Defender with Heavy Assault Rifle Last Messages --------------- 01205_ Aluminum Leg destroyed. 01206_ Lgt. Ion Engine destroyed. 01231_ Heat Sink fried. 01231_ Y-45 Defender destroyed. 01232_ S-10 Pest misfires. 01238_ Acquired 60 matter. 01240_ K-01 Serf collects debris. 01241_ Weapon Shielding destroyed. 01241_ Lgt. EM Pulse Cannon destroyed. 01241_ R-06 Scavenger collects Lgt. Armor Plating. 01244_ K-01 Serf collects debris. 01244_ Acquired Imp. Ion Engine. 01244_ Lgt. EM Pulse Cannon destroyed. 01245_ R-06 Scavenger collects Lgt. Treads. 01247_ K-01 Serf collects debris. 01249_ R-06 Scavenger collects Lgt. Treads. 01251_ K-01 Serf destroyed. 01252_ R-06 Scavenger collects Wheel. 01256_ Imp. Ion Engine destroyed. 01257_ S-10 Pest destroyed. Map ----- +----------------------------------------------------+ | ?????????????????????????????????????????##??# | | ???????????????????????????????????????? ??# | | ?????????????????????????????????###???? "???# | | ????????????????????????????????## #### "???+ | | ????????????????????????????????# ????# | | ????????????????????????###????## " ????# | | ????????????????????????#!!=???# " ##????? | | ????????????????????????#!!==???# " ######### | | ????????????????????????# ???# """""""# | | ????????????????????????# ??# !"! "# | | ???????????????????## ### ##### # " | | ?????????????????? ^ | | ?????????????????? ^ < | | ?????????????????? | | ??????????????????????### ##+### # ## | | ????????????????????????####??# # # # #? | | ??????????????????????????????# # # ## ####? | | ??????????????????????????????# # = #####???? | | ??????????????????????????????# !## # #????? | | ??????????????????????????????# ## #### #????? | | ??????????????????????????????# ##]] #????#????? | | ??????????????????????????????# ## #?????????? | | ??????????????????????????????#/########?????????? | | ????????????????###+????????### ###??????????????? | | ?????????????#### ####### = #??????????????? | | ????????? r @=[ #??????????????? | | ????????? % [%[% +??????????????? | | ????????? % rY =Y= #??????????????? | | ??????????####### ####### #??????????????? | | ????????????????## #??????#######??????????????? | | ?????????????????# ????????????????????????????? | | ?????????????????# ?????????????????????????????? | | ?????????????????+ ??????????????????????????????? | | ?????????????????#???????????????????????????????? | | ?????????????????????????????????????????????????? | | ?????????????????????????????????????????????????? | | ?????????????????????????????????????????????????? | | ?????????????????????????????????????????????????? | | ?????????????????????????????????????????????????? | | ?????????????????????????????????????????????????? | | ?????????????????????????????????????????????????? | | ?????????????????????????????????????????????????? | | ?????????????????????????????????????????????????? | | ?????????????????????????????????????????????????? | | ?????????????????????????????????????????????????? | | ?????????????????????????????????????????????????? | | ?????????????????????????????????????????????????? | | ?????????????????????????????????????????????????? | | ?????????????????????????????????????????????????? | | ?????????????????????????????????????????????????? | +----------------------------------------------------+ Best States ------------- Heat Dissipation 38 Energy Generation 12 Energy Capacity 265 Matter Stores 300 Matter Capacity 300 Sight Range 16 Robot Scan Range 10 Terrain Scan Density 10 Resistance: KI 20 Resistance: TH 20 Resistance: EX 20 Resistance: EM 20 Resistance: I 20 Resistance: S 20 Resistance: P 20 Weapon Shielding 33 Evasion (%) 40 Offensive Hacking 10 Item Schematics ----------------- None Robot Schematics ------------------ None Fabricated ------------ Nothing Alien Tech Used ----------------- None Achievements -------------- None Challenges ------------ None Game ------ Seed containtmentchargearmor Manual? 1 Play Time 00:16:21 Cumulative 290.7 hours Start 2020.11.14 @ 10:37:31 End 2020.11.14 @ 10:51:05 Sessions 1 Manual Loads 0 Difficulty Adventurer Special Mode Halloween2020/ForbiddenLore Game No. 15 Rogue 0 Adventurer 15 Explorer 0 Win Type - Total 8 Types 6/1/0/1/0/0/0/0/0 Lore% 46 Gallery% 62 Achievement% 51 Wizard Run 0 Options --------- ASCII 0 Keyboard 0 Movement Numpad Keybinds 0 Fullscreen 1 Font 18/SmallcapsGlow Map View 76x50 Tactical HUD 1 Map Filters NONE Filters NONE Steam 1 RUN: b478b24a-8d19-496d-9aaa-4aac5eeaf79b